fUST/lending_fUST_20250302
["ID","MTS","AMOUNT","RATE_DAILY","PERIOD"]
[355035815,1740877858204,-500.0,0.00024931,2]
[355035816,1740877858214,-500.0,0.00024931,2]
[355035817,1740877858223,-1209.79,0.00024931,2]
[355035818,1740877858232,-500.0,0.00024931,2]
[355035819,1740877858242,-150.0,0.00024932,2]
[355035820,1740877858251,-2513.6879109,0.00024969,2]
[355035821,1740877858261,-908.90461348,0.00024972,2]
[355035822,1740877858271,-500.0,0.00024973,2]
[355035823,1740877858281,-491.60779993,0.00024973,2]
[355035824,1740877858291,-500.0,0.00024973,2]
[355035825,1740877858300,-500.0,0.00024973,2]
[355035826,1740877858310,-150.86461303,0.00024973,2]
[355035827,1740877858320,-500.0,0.00024973,2]
[355035828,1740877858330,-160.0,0.00024973,2]
[355035829,1740877858340,-500.0,0.00024973,2]
[355035830,1740877858351,-500.0,0.00024973,2]
[355035831,1740877858363,-500.0,0.00024973,2]
[355035832,1740877858372,-500.0,0.00024973,2]
[355035833,1740877858382,-503.42715993,0.00024973,2]
[355035834,1740877858392,-500.0,0.00024973,2]
[355035835,1740877858402,-500.0,0.00024973,2]
[355035836,1740877858412,-384.39116885,0.00024973,2]
[355035837,1740877858421,-500.0,0.00024973,2]
[355035838,1740877858432,-500.0,0.00024973,2]
[355035839,1740877858443,-500.0,0.00024973,2]
[355035840,1740877858452,-581.54249387,0.00024973,2]
[355035841,1740877858462,-503.01819855,0.00024973,2]
[355035842,1740877858471,-500.0,0.00024973,2]
[355035843,1740877858482,-300.20962099,0.00024973,2]
[355035844,1740877858492,-166.48973665,0.00024973,2]
[355035845,1740877858501,-500.0,0.00024973,2]
[355035846,1740877858512,-500.0,0.00024973,2]
[355035847,1740877858521,-500.0,0.00024973,2]
[355035848,1740877858531,-500.0,0.00024973,2]
[355035849,1740877858541,-500.0,0.00024973,2]
[355035850,1740877858551,-504.34516954,0.00024973,2]
[355035851,1740877858561,-500.0,0.00024973,2]
[355035852,1740877858571,-601.26755221,0.00024973,2]
[355035853,1740877858581,-500.0,0.00024973,2]
[355035854,1740877858591,-500.0,0.00024973,2]
[355035855,1740877858602,-500.0,0.00024973,2]
[355035856,1740877858612,-500.0,0.00024973,2]
[355035857,1740877858622,-500.0,0.00024973,2]
[355035858,1740877858632,-163.75696149,0.00024973,2]
[355035859,1740877858642,-262.20621332,0.00024973,2]
[355035860,1740877858653,-500.0,0.00024973,2]
[355035861,1740877858663,-500.0,0.00024973,2]
[355035862,1740877858673,-367.80974713,0.00024973,2]
[355035863,1740877858684,-501.82626897,0.00024973,2]
[355035864,1740877858694,-500.0,0.00024973,2]
[355035865,1740877858704,-479.59262317,0.00024973,2]
[355035866,1740877858714,-500.0,0.00024973,2]
[355035867,1740877858724,-501.49573493,0.00024973,2]
[355035868,1740877858734,-500.0,0.00024973,2]
[355035869,1740877858744,-500.0,0.00024973,2]
[355035870,1740877858754,-500.0,0.00024973,2]
[355035871,1740877858764,-198.83457655,0.00024973,2]
[355035872,1740877858773,-628.55083238,0.00024973,2]
[355035873,1740877858783,-500.0,0.00024973,2]
[355035874,1740877858793,-500.0,0.00024973,2]
[355035875,1740877858803,-500.0,0.00024973,2]
[355035876,1740877858813,-500.0,0.00024973,2]
[355035877,1740877858822,-501.75957197,0.00024973,2]
[355035878,1740877858833,-198.68961882,0.00024973,2]
[355035879,1740877858843,-500.0,0.00024973,2]
[355035880,1740877858853,-227.698802,0.00024973,7]
[355035881,1740877858863,-227.698802,0.00024973,7]
[355035882,1740877858873,-6479.21,0.00025,2]
[355035883,1740877858883,-6666.66666667,0.00025,2]
[355035884,1740877858894,-6666.66,0.00025,2]
[355035885,1740877858904,-6666.66666667,0.00025,2]
[355035886,1740877858914,-150.0,0.00025,2]
[355035887,1740877858924,-500.0,0.00025,2]
[355035888,1740877858935,-19624.61182001,0.00025,3]
[355035889,1740877858945,-151.0,0.00025,7]
[355035890,1740877858955,-151.0,0.00025,7]
[355035891,1740877858964,-151.0,0.00025,7]
[355035892,1740877858975,-329.919589,0.00025,7]
[355035893,1740877858984,-329.919589,0.00025,7]
[355035894,1740877858995,-160.0,0.00025,3]
[355035895,1740877859004,-160.0,0.00025,3]
[355035896,1740877859013,-225.82198703,0.00025,4]
[355035897,1740877859023,-1000.0,0.00025,2]
[355035898,1740877859033,-1004.90717248,0.00025054,2]
[355035899,1740877859042,-500.0,0.000251,2]
[355035900,1740877859052,-350.0,0.00025131,3]
[355035901,1740877859062,-315.0,0.00025131,3]
[355035902,1740877859072,-44148.13571503,0.00025195,2]
[355035903,1740877859082,-1030.020155,0.00025195,7]
[355035904,1740877859092,-1030.020155,0.00025195,7]
[355035905,1740877859102,-354.614926,0.00025195,7]
[355035906,1740877859111,-354.614926,0.00025195,7]
[355035907,1740877859121,-1549.58243,0.00025195,7]
[355035908,1740877859131,-376.988901,0.00025195,7]
[355035909,1740877859141,-376.988901,0.00025195,7]
[355035910,1740877859151,-500.0,0.000252,2]
[355035911,1740877859160,-105349.49989346,0.00025205,4]
[355035912,1740877859170,-332932.73089281,0.00025205,4]
[355035913,1740877859181,-151.0,0.00025205,7]
[355035914,1740877859191,-500.0,0.00025205,2]
[355035915,1740877859200,-209.62608574,0.00025205,2]
[355035916,1740877859211,-500.0,0.00025205,2]
[355035917,1740877859221,-500.0,0.00025205,2]
[355035918,1740877859230,-983.16,0.00025205,2]
[355035919,1740877859240,-500.0,0.00025205,2]
[355035920,1740877859250,-500.0,0.00025205,2]
[355035921,1740877859260,-500.0,0.00025205,2]
[355035922,1740877859269,-500.0,0.00025205,2]
[355035923,1740877859279,-500.0,0.00025205,2]
[355035924,1740877859288,-500.0,0.00025205,2]
[355035925,1740877859297,-266.54341547,0.00025205,2]
[355035926,1740877859306,-500.0,0.00025205,2]
[355035927,1740877859316,-500.0,0.00025205,2]
[355035928,1740877859325,-500.0,0.00025205,2]
[355035929,1740877859336,-500.0,0.00025205,2]
[355035930,1740877859345,-470.63071331,0.00025205,2]
[355035931,1740877859355,-500.0,0.00025205,2]
[355035932,1740877859367,-500.0,0.00025205,2]
[355035933,1740877859377,-634.45,0.00025205,2]
[355035934,1740877859386,-500.0,0.00025205,2]
[355035935,1740877859395,-500.0,0.00025205,2]
[355035936,1740877859407,-283.83787859,0.00025205,2]
[355035937,1740877859416,-500.0,0.00025205,2]
[355035938,1740877859426,-500.0,0.00025205,2]
[355035939,1740877859439,-500.0,0.00025205,2]
[355035940,1740877859449,-500.0,0.00025205,2]
[355035941,1740877859459,-500.0,0.00025205,2]
[355035942,1740877859468,-500.0,0.00025205,2]
[355035943,1740877859478,-500.0,0.00025205,2]
[355035944,1740877859488,-762.49,0.00025205,2]
[355035945,1740877859498,-500.0,0.00025205,2]
[355035946,1740877859507,-504.6651435,0.00025205,2]
[355035947,1740877859517,-500.0,0.00025205,2]
[355035948,1740877859528,-500.0,0.00025205,2]
[355035949,1740877859538,-196.14217479,0.00025205,2]
[355035950,1740877859547,-922.23,0.00025205,2]
[355035951,1740877859557,-913.09,0.00025205,2]
[355035952,1740877859566,-1296.91,0.00025205,2]
[355035953,1740877859576,-500.0,0.00025205,2]
[355035954,1740877859585,-500.0,0.00025205,2]
[355035955,1740877859594,-151.0,0.00025205,7]
[355035956,1740877859604,-500.0,0.00025205,2]
[355035957,1740877859613,-500.0,0.00025205,2]
[355035958,1740877859623,-1272.96,0.00025205,2]
[355035959,1740877859632,-500.0,0.00025205,2]
[355035960,1740877859641,-500.0,0.00025205,2]
[355035961,1740877859651,-500.0,0.00025205,2]
[355035962,1740877859660,-500.0,0.00025205,2]
[355035963,1740877859670,-151.0,0.00025205,7]
[355035964,1740877859682,-500.0,0.00025205,2]
[355035965,1740877859691,-500.0,0.00025205,2]
[355035966,1740877859701,-500.0,0.00025205,2]
[355035967,1740877859711,-500.0,0.00025205,2]
[355035968,1740877859720,-828.16,0.00025205,2]
[355035969,1740877859730,-1378.883154,0.00025205,7]
[355035970,1740877859740,-509.44,0.00025205,2]
[355035971,1740877859749,-151.0,0.00025205,7]
[355035972,1740877859759,-500.0,0.00025205,2]
[355035973,1740877859768,-151.0,0.00025205,7]
[355035974,1740877859778,-500.0,0.00025205,2]
[355035975,1740877859788,-500.0,0.00025205,2]
[355035976,1740877859797,-151.0,0.00025205,7]
[355035977,1740877859807,-500.0,0.00025205,2]
[355035978,1740877859817,-500.0,0.00025205,2]
[355035979,1740877859826,-490.79394895,0.00025205,2]
[355035980,1740877859836,-151.0,0.00025205,7]
[355035981,1740877859846,-500.0,0.00025205,2]
[355035982,1740877859856,-500.0,0.00025205,2]
[355035983,1740877859866,-500.0,0.00025205,2]
[355035984,1740877859875,-151.0,0.00025205,7]
[355035985,1740877859884,-500.0,0.00025205,2]
[355035986,1740877859894,-162.635591,0.00025205,7]
[355035987,1740877859903,-500.0,0.00025205,2]
[355035988,1740877859913,-500.0,0.00025205,2]
[355035989,1740877859923,-1645.57,0.00025205,2]
[355035990,1740877859934,-500.0,0.00025205,2]
[355035991,1740877859947,-162.635591,0.00025205,7]
[355035992,1740877859956,-656.48,0.00025205,2]
[355035993,1740877859966,-500.0,0.00025205,2]
[355035994,1740877859976,-500.0,0.00025205,2]
[355035995,1740877859985,-500.0,0.00025205,2]
[355035996,1740877859995,-499.638185,0.00025205,7]
[355035997,1740877860005,-1340.71,0.00025205,2]
[355035998,1740877860015,-500.0,0.00025205,2]
[355035999,1740877860025,-500.0,0.00025205,2]
[355036000,1740877860035,-151.0,0.00025205,7]
[355036001,1740877860045,-500.0,0.00025205,2]
[355036002,1740877860055,-500.0,0.00025205,2]
[355036003,1740877860065,-500.0,0.00025205,2]
[355036004,1740877860075,-151.0,0.00025205,7]
[355036005,1740877860085,-526.96,0.00025205,2]
[355036006,1740877860095,-500.0,0.00025205,2]
[355036007,1740877860104,-151.0,0.00025205,7]
[355036008,1740877860114,-215.396,0.00025205,9]
[355036009,1740877860124,-500.0,0.00025205,2]
[355036010,1740877860134,-914.1,0.00025205,2]
[355036011,1740877860144,-500.0,0.00025205,2]
[355036012,1740877860154,-511.95,0.00025205,2]
[355036013,1740877860164,-1312.81,0.00025205,2]
[355036014,1740877860174,-187.297976,0.00025205,7]
[355036015,1740877860184,-346.449302,0.00025205,7]
[355036016,1740877860194,-500.0,0.00025205,2]
[355036017,1740877860203,-346.449302,0.00025205,7]
[355036018,1740877860213,-151.0,0.00025205,7]
[355036019,1740877860223,-660.28,0.00025205,2]
[355036020,1740877860233,-500.0,0.00025205,2]
[355036021,1740877860242,-500.0,0.00025205,2]
[355036022,1740877860252,-200.523826,0.00025205,7]
[355036023,1740877860262,-857.14,0.00025205,2]
[355036024,1740877860271,-200.523826,0.00025205,7]
[355036025,1740877860281,-1545.03,0.00025205,2]
[355036026,1740877860291,-500.0,0.00025205,2]
[355036027,1740877860301,-500.0,0.00025205,2]
[355036028,1740877860312,-505.69068421,0.00025205,2]
[355036029,1740877860322,-994.65,0.00025205,2]
[355036030,1740877860332,-500.35337952,0.00025205,2]
[355036031,1740877860342,-500.0,0.00025205,2]
[355036032,1740877860354,-643.16,0.00025205,2]
[355036033,1740877860367,-151.0,0.00025205,7]
[355036034,1740877860377,-500.0,0.00025205,2]
[355036035,1740877860389,-500.0,0.00025205,2]
[355036036,1740877860400,-539.85,0.00025205,2]
[355036037,1740877860410,-500.0,0.00025205,2]
[355036038,1740877860420,-500.0,0.00025205,2]
[355036039,1740877860433,-151.0,0.00025205,7]
[355036040,1740877860444,-500.0,0.00025205,2]
[355036041,1740877860454,-151.0,0.00025205,7]
[355036042,1740877860464,-500.0,0.00025205,2]
[355036043,1740877860474,-151.0,0.00025205,7]
[355036044,1740877860484,-500.0,0.00025205,2]
[355036045,1740877860494,-151.0,0.00025205,7]
[355036046,1740877860503,-500.0,0.00025205,2]
[355036047,1740877860513,-405.92986803,0.00025205,2]
[355036048,1740877860523,-237.67060862,0.00025205,2]
[355036049,1740877860533,-593.21,0.00025205,2]
[355036050,1740877860542,-500.0,0.00025205,2]
[355036051,1740877860552,-1409.88,0.00025205,2]
[355036052,1740877860561,-500.0,0.00025205,2]
[355036053,1740877860571,-500.0,0.00025205,2]
[355036054,1740877860580,-785.23,0.00025205,2]
[355036055,1740877860590,-500.0,0.00025205,2]
[355036056,1740877860600,-500.0,0.00025205,2]
[355036057,1740877860610,-500.0,0.00025205,2]
[355036058,1740877860620,-570.56240796,0.00025205,2]
[355036059,1740877860630,-500.0,0.00025205,2]
[355036060,1740877860640,-525.04,0.00025205,2]
[355036061,1740877860650,-500.0,0.00025205,2]
[355036062,1740877860660,-503.95,0.00025205,2]
[355036063,1740877860669,-500.0,0.00025205,2]
[355036064,1740877860679,-604.33,0.00025205,2]
[355036065,1740877860689,-500.0,0.00025205,2]
[355036066,1740877860699,-500.0,0.00025205,2]
[355036067,1740877860709,-768.63,0.00025205,2]
[355036068,1740877860719,-1171.5,0.00025205,2]
[355036069,1740877860728,-500.0,0.00025205,2]
[355036070,1740877860738,-500.0,0.00025205,2]
[355036071,1740877860748,-1291.1,0.00025205,2]
[355036072,1740877860757,-151.0,0.00025205,7]
[355036073,1740877860767,-500.0,0.00025205,2]
[355036074,1740877860777,-193.60664695,0.00025205,2]
[355036075,1740877860786,-500.0,0.00025205,2]
[355036076,1740877860796,-1898.76,0.00025205,2]
[355036077,1740877860807,-500.0,0.00025205,2]
[355036078,1740877860816,-524.175367,0.00025205,2]
[355036079,1740877860826,-500.0,0.00025205,2]
[355036080,1740877860835,-500.0,0.00025205,2]
[355036081,1740877860845,-500.0,0.00025205,2]
[355036082,1740877860855,-500.0,0.00025205,2]
[355036083,1740877860865,-500.0,0.00025205,2]
[355036084,1740877860874,-500.0,0.00025205,2]
[355036085,1740877860884,-613.07,0.00025205,2]
[355036086,1740877860893,-500.0,0.00025205,2]
[355036087,1740877860903,-500.0,0.00025205,2]
[355036088,1740877860912,-500.0,0.00025205,2]
[355036089,1740877860922,-500.0,0.00025205,2]
[355036090,1740877860933,-500.0,0.00025205,2]
[355036091,1740877860943,-508.68432404,0.00025205,2]
[355036092,1740877860953,-500.0,0.00025205,2]
[355036093,1740877860963,-500.0,0.00025205,2]
[355036094,1740877860972,-513.22129983,0.00025205,2]
[355036095,1740877860981,-500.0,0.00025205,2]
[355036096,1740877860991,-1748.83,0.00025205,2]
[355036097,1740877861001,-500.0,0.00025205,2]
[355036098,1740877861011,-500.0,0.00025205,2]
[355036099,1740877861021,-500.0,0.00025205,2]
[355036100,1740877861030,-500.0,0.00025205,2]
[355036101,1740877861226,-500.0,0.00025205,2]
[355036102,1740877861238,-500.0,0.00025205,2]
[355036103,1740877861249,-500.0,0.00025205,2]
[355036104,1740877861259,-845.02,0.00025205,2]
[355036105,1740877861268,-155.1862099,0.00025205,2]
[355036106,1740877861278,-500.0,0.00025205,2]
[355036107,1740877861289,-1280.31,0.00025205,2]
[355036108,1740877861298,-1775.3,0.00025205,2]
[355036109,1740877861308,-227.698802,0.00025205,7]
[355036110,1740877861318,-500.0,0.00025205,2]
[355036111,1740877861329,-1652.1,0.00025205,2]
[355036112,1740877861339,-500.0,0.00025205,2]
[355036113,1740877861349,-500.0,0.00025205,2]
[355036114,1740877861360,-227.698802,0.00025205,7]
[355036115,1740877861371,-500.0,0.00025205,2]
[355036116,1740877861380,-500.0,0.00025205,2]
[355036117,1740877861391,-500.0,0.00025205,2]
[355036118,1740877861402,-500.0,0.00025205,2]
[355036119,1740877861412,-709.16,0.00025205,2]
[355036120,1740877861423,-1152.82,0.00025205,2]
[355036121,1740877861434,-500.0,0.00025205,2]
[355036122,1740877861444,-500.0,0.00025205,2]
[355036123,1740877861454,-500.0,0.00025205,2]
[355036124,1740877861464,-500.0,0.00025205,2]
[355036125,1740877861474,-500.0,0.00025205,2]
[355036126,1740877861485,-583.0,0.00025205,2]
[355036127,1740877861494,-500.0,0.00025205,2]
[355036128,1740877861505,-500.0,0.00025205,2]
[355036129,1740877861515,-500.0,0.00025205,2]
[355036130,1740877861525,-500.0,0.00025205,2]
[355036131,1740877861535,-500.0,0.00025205,2]
[355036132,1740877861545,-757.03,0.00025205,2]
[355036133,1740877861555,-500.0,0.00025205,2]
[355036134,1740877861566,-500.0,0.00025205,2]
[355036135,1740877861576,-168.040248,0.00025205,7]
[355036136,1740877861586,-168.040248,0.00025205,7]
[355036137,1740877861595,-500.0,0.00025205,2]
[355036138,1740877861605,-168.040248,0.00025205,7]
[355036139,1740877861615,-669.95,0.00025205,2]
[355036140,1740877861626,-1999.0,0.00025205,2]
[355036141,1740877861636,-168.040248,0.00025205,7]
[355036142,1740877861647,-506.40713011,0.00025205,2]
[355036143,1740877861657,-513.45228912,0.00025205,2]
[355036144,1740877861666,-543.17,0.00025205,2]
[355036145,1740877861676,-1069.47,0.00025205,2]
[355036146,1740877861687,-200.0,0.00025205,2]
[355036147,1740877861697,-500.0,0.00025205,2]
[355036148,1740877861707,-893.73,0.00025205,2]
[355036149,1740877861716,-500.0,0.00025205,2]
[355036150,1740877861726,-500.0,0.00025205,2]
[355036151,1740877861736,-519.36,0.00025205,2]
[355036152,1740877861745,-500.0,0.00025205,2]
[355036153,1740877861755,-1882.552513,0.00025205,7]
[355036154,1740877861765,-1882.552513,0.00025205,7]
[355036155,1740877861775,-500.0,0.00025205,2]
[355036156,1740877861784,-1882.552513,0.00025205,7]
[355036157,1740877861794,-718.22,0.00025205,2]
[355036158,1740877861803,-1882.552513,0.00025205,7]
[355036159,1740877861813,-444.73352121,0.00025205,2]
[355036160,1740877861822,-353.92944789,0.00025205,2]
[355036161,1740877861834,-500.0,0.00025205,2]
[355036162,1740877861843,-500.0,0.00025205,2]
[355036163,1740877861853,-152.277099,0.00025205,7]
[355036164,1740877861863,-500.0,0.00025205,2]
[355036165,1740877861873,-525.66281093,0.00025205,2]
[355036166,1740877861883,-729.5,0.00025205,2]
[355036167,1740877861893,-500.0,0.00025205,2]
[355036168,1740877861903,-1210.72,0.00025205,2]
[355036169,1740877861913,-500.0,0.00025205,2]
[355036170,1740877861923,-500.0,0.00025205,2]
[355036171,1740877861934,-720.06,0.00025205,2]
[355036172,1740877861944,-500.0,0.00025205,2]
[355036173,1740877861954,-525.25,0.00025205,2]
[355036174,1740877861968,-500.0,0.00025205,2]
[355036175,1740877861977,-500.0,0.00025205,2]
[355036176,1740877861987,-500.0,0.00025205,2]
[355036177,1740877861997,-500.0,0.00025205,2]
[355036178,1740877862007,-892.38,0.00025205,2]
[355036179,1740877862016,-500.0,0.00025205,2]
[355036180,1740877862026,-500.0,0.00025205,2]
[355036181,1740877862036,-500.0,0.00025205,2]
[355036182,1740877862046,-500.0,0.00025205,2]
[355036183,1740877862056,-500.0,0.00025205,2]
[355036184,1740877862065,-500.0,0.00025205,2]
[355036185,1740877862075,-500.0,0.00025205,2]
[355036186,1740877862085,-679.6,0.00025205,2]
[355036187,1740877862096,-500.0,0.00025205,2]
[355036188,1740877862106,-625.19,0.00025205,2]
[355036189,1740877862115,-500.0,0.00025205,2]
[355036190,1740877862125,-500.0,0.00025205,2]
[355036191,1740877862135,-500.0,0.00025205,2]
[355036192,1740877862144,-500.0,0.00025205,2]
[355036193,1740877862154,-3235.54,0.00025205,2]
[355036194,1740877862164,-1054.92,0.00025205,2]
[355036195,1740877862174,-500.0,0.00025205,2]
[355036196,1740877862184,-500.0,0.00025205,2]
[355036197,1740877862194,-500.0,0.00025205,2]
[355036198,1740877862204,-1282.19,0.00025205,2]
[355036199,1740877862213,-151.0,0.00025205,7]
[355036200,1740877862223,-638.84,0.00025205,2]
[355036201,1740877862233,-500.0,0.00025205,2]
[355036202,1740877862243,-500.0,0.00025205,2]
[355036203,1740877862253,-634.14130222,0.00025205,2]
[355036204,1740877862263,-500.0,0.00025205,2]
[355036205,1740877862273,-500.0,0.00025205,2]
[355036206,1740877862283,-151.0,0.00025205,7]
[355036207,1740877862293,-500.0,0.00025205,2]
[355036208,1740877862303,-484.83221773,0.00025205,2]
[355036209,1740877862313,-500.0,0.00025205,2]
[355036210,1740877862322,-500.0,0.00025205,2]
[355036211,1740877862331,-2041.67,0.00025205,2]
[355036212,1740877862341,-151.0,0.00025205,7]
[355036213,1740877862351,-500.0,0.00025205,2]
[355036214,1740877862366,-500.0,0.00025205,2]
[355036215,1740877862375,-151.0,0.00025205,7]
[355036216,1740877862385,-500.0,0.00025205,2]
[355036217,1740877862394,-500.0,0.00025205,2]
[355036218,1740877862404,-1336.3,0.00025205,2]
[355036219,1740877862414,-602.1,0.00025205,2]
[355036220,1740877862424,-2130.69,0.00025205,2]
[355036221,1740877862436,-500.0,0.00025205,2]
[355036222,1740877862445,-500.0,0.00025205,2]
[355036223,1740877862455,-500.0,0.00025205,2]
[355036224,1740877862464,-500.0,0.00025205,2]
[355036225,1740877862474,-617.75403216,0.00025205,2]
[355036226,1740877862483,-500.0,0.00025205,2]
[355036227,1740877862492,-500.0,0.00025205,2]
[355036228,1740877862502,-500.0,0.00025205,2]
[355036229,1740877862512,-500.0,0.00025205,2]
[355036230,1740877862521,-1000.0,0.00025205,2]
[355036231,1740877862531,-500.0,0.00025205,2]
[355036232,1740877862541,-2639.74,0.00025205,2]
[355036233,1740877862550,-500.0,0.00025205,2]
[355036234,1740877862559,-500.0,0.00025205,2]
[355036235,1740877862569,-500.0,0.00025205,2]
[355036236,1740877862578,-500.0,0.00025205,2]
[355036237,1740877862588,-500.0,0.00025205,2]
[355036238,1740877862597,-500.0,0.00025205,2]
[355036239,1740877862606,-1033.67,0.00025205,2]
[355036240,1740877862616,-500.0,0.00025205,2]
[355036241,1740877862626,-500.0,0.00025205,2]
[355036242,1740877862636,-500.0,0.00025205,2]
[355036243,1740877862645,-500.0,0.00025205,2]
[355036244,1740877862654,-1247.66,0.00025205,2]
[355036245,1740877862663,-267.226842,0.00025205,7]
[355036246,1740877862673,-1489.13,0.00025205,2]
[355036247,1740877862683,-500.0,0.00025205,2]
[355036248,1740877862692,-267.226842,0.00025205,7]
[355036249,1740877862702,-500.0,0.00025205,2]
[355036250,1740877862712,-500.0,0.00025205,2]
[355036251,1740877862722,-500.0,0.00025205,2]
[355036252,1740877862732,-500.0,0.00025205,2]
[355036253,1740877862742,-500.0,0.00025205,2]
[355036254,1740877862751,-500.0,0.00025205,2]
[355036255,1740877862761,-742.78,0.00025205,2]
[355036256,1740877862771,-500.0,0.00025205,2]
[355036257,1740877862780,-584.73,0.00025205,2]
[355036258,1740877862790,-500.0,0.00025205,2]
[355036259,1740877862799,-500.0,0.00025205,2]
[355036260,1740877862808,-500.0,0.00025205,2]
[355036261,1740877862818,-1392.58,0.00025205,2]
[355036262,1740877862827,-500.99,0.00025205,2]
[355036263,1740877862837,-500.0,0.00025205,2]
[355036264,1740877862847,-500.0,0.00025205,2]
[355036265,1740877862856,-500.0,0.00025205,2]
[355036266,1740877862866,-500.0,0.00025205,2]
[355036267,1740877862875,-500.0,0.00025205,2]
[355036268,1740877862885,-543.48,0.00025205,2]
[355036269,1740877862895,-500.0,0.00025205,2]
[355036270,1740877862905,-500.0,0.00025205,2]
[355036271,1740877862914,-515.28015119,0.00025205,2]
[355036272,1740877862938,-1145.6,0.00025205,2]
[355036273,1740877862948,-151.0,0.00025205,7]
[355036274,1740877862958,-151.0,0.00025205,7]
[355036275,1740877862968,-171.00372377,0.00025205,2]
[355036276,1740877862978,-500.0,0.00025205,2]
[355036277,1740877862988,-2085.36,0.00025205,2]
[355036278,1740877862998,-500.0,0.00025205,2]
[355036279,1740877863008,-1036.64,0.00025205,2]
[355036280,1740877863017,-500.0,0.00025205,2]
[355036281,1740877863027,-151.0,0.00025205,7]
[355036282,1740877863038,-151.0,0.00025205,7]
[355036283,1740877863049,-1085.45,0.00025205,2]
[355036284,1740877863060,-570.7,0.00025205,2]
[355036285,1740877863071,-500.0,0.00025205,2]
[355036286,1740877863081,-151.0,0.00025205,7]
[355036287,1740877863091,-500.0,0.00025205,2]
[355036288,1740877863101,-783.25,0.00025205,2]
[355036289,1740877863112,-513.08525506,0.00025205,2]
[355036290,1740877863122,-500.0,0.00025205,2]
[355036291,1740877863133,-500.0,0.00025205,2]
[355036292,1740877863144,-992.68,0.00025205,2]
[355036293,1740877863155,-500.0,0.00025205,2]
[355036294,1740877863166,-666.84,0.00025205,2]
[355036295,1740877863177,-500.0,0.00025205,2]
[355036296,1740877863189,-2619.58,0.00025205,2]
[355036297,1740877863200,-500.0,0.00025205,2]
[355036298,1740877863211,-500.0,0.00025205,2]
[355036299,1740877863222,-500.0,0.00025205,2]
[355036300,1740877863232,-151.0,0.00025205,7]
[355036301,1740877863242,-500.0,0.00025205,2]
[355036302,1740877863252,-1308.07,0.00025205,2]
[355036303,1740877863262,-500.0,0.00025205,2]
[355036304,1740877863272,-184.713929,0.00025205,7]
[355036305,1740877863283,-500.0,0.00025205,2]
[355036306,1740877863294,-500.0,0.00025205,2]
[355036307,1740877863304,-184.713929,0.00025205,7]
[355036308,1740877863315,-574.42600429,0.00025205,2]
[355036309,1740877863325,-500.0,0.00025205,2]
[355036310,1740877863336,-511.32,0.00025205,2]
[355036311,1740877863346,-454.30551841,0.00025205,2]
[355036312,1740877863361,-500.0,0.00025205,2]
[355036313,1740877863371,-500.0,0.00025205,2]
[355036314,1740877863383,-500.0,0.00025205,2]